fUST/lending_fUST_20260213
["ID","MTS","AMOUNT","RATE_DAILY","PERIOD"]
[405281218,1770940048085,-165.62342854,0.00030135,2]
[405281219,1770940048108,-10481.08278302,0.00030136,2]
[405281221,1770940052084,-755.97541188,0.00030136,2]
[405281356,1770940147185,-150.0,0.0002589,2]
[405281357,1770940147206,-177.0,0.0002789,2]
[405281358,1770940147230,-204.0,0.0002989,2]
[405281359,1770940147251,-1029.78186381,0.00030037,2]
[405281360,1770940147274,-400.0,0.00030134,2]
[405281361,1770940147300,-413.76557635,0.00030135,2]
[405281362,1770940147324,-500.0,0.00030135,2]
[405281363,1770940147348,-500.0,0.00030135,2]
[405281364,1770940147370,-500.0,0.00030135,2]
[405281365,1770940147394,-500.0,0.00030135,2]
[405281366,1770940147417,-500.0,0.00030135,2]
[405281367,1770940147440,-500.0,0.00030135,2]
[405281368,1770940147462,-500.0,0.00030135,2]
[405281369,1770940147485,-500.0,0.00030135,2]
[405281370,1770940147511,-500.0,0.00030135,2]
[405281371,1770940147533,-500.0,0.00030135,2]
[405281372,1770940147555,-499.93263713,0.00030135,2]
[405281373,1770940147577,-500.0,0.00030135,2]
[405281374,1770940147599,-500.0,0.00030135,2]
[405281375,1770940147620,-558.26269047,0.00030135,2]
[405281376,1770940147641,-500.0,0.00030135,2]
[405281377,1770940147664,-500.0,0.00030135,2]
[405281378,1770940147685,-500.0,0.00030135,2]
[405281379,1770940147706,-500.0,0.00030135,2]
[405281380,1770940147728,-500.0,0.00030135,2]
[405281381,1770940147750,-500.0,0.00030135,2]
[405281382,1770940147773,-500.0,0.00030135,2]
[405281383,1770940147794,-500.0,0.00030135,2]
[405281384,1770940147816,-500.0,0.00030135,2]
[405281385,1770940147838,-500.0,0.00030135,2]
[405281386,1770940147859,-500.0,0.00030135,2]
[405281387,1770940147884,-500.0,0.00030135,2]
[405281388,1770940147907,-500.0,0.00030135,2]
[405281389,1770940147930,-500.0,0.00030135,2]
[405281390,1770940147951,-500.0,0.00030135,2]
[405281391,1770940147973,-500.0,0.00030135,2]
[405281392,1770940147996,-500.0,0.00030135,2]
[405281393,1770940148019,-500.0,0.00030135,2]
[405281394,1770940148043,-500.0,0.00030135,2]
[405281395,1770940148067,-500.0,0.00030135,2]
[405281396,1770940148088,-500.0,0.00030135,2]
[405281397,1770940148109,-500.0,0.00030135,2]
[405281398,1770940148130,-500.0,0.00030135,2]
[405281399,1770940148151,-500.0,0.00030135,2]
[405281400,1770940148172,-187.97421465,0.00030135,2]
[405281401,1770940148194,-500.0,0.00030135,2]
[405281402,1770940148216,-500.0,0.00030135,2]
[405281403,1770940148243,-500.0,0.00030135,2]
[405281404,1770940148267,-500.0,0.00030135,2]
[405281405,1770940148290,-500.0,0.00030135,2]
[405281407,1770940148314,-500.0,0.00030135,2]
[405281408,1770940148338,-500.0,0.00030135,2]
[405281409,1770940148361,-500.0,0.00030135,2]
[405281410,1770940148384,-500.0,0.00030135,2]
[405281412,1770940148409,-500.0,0.00030135,2]
[405281414,1770940148432,-500.0,0.00030135,2]
[405281415,1770940148596,-500.0,0.00030135,2]
[405281416,1770940148621,-500.0,0.00030135,2]
[405281418,1770940148644,-645.13835668,0.00030135,2]
[405281419,1770940148664,-24646.12111737,0.00030136,2]
[405281420,1770940148686,-6919.0,0.00030137,7]
[405281421,1770940148707,-132.55498203,0.00030639,2]
[405281422,1770940148729,-500.0,0.00030641,2]
[405281423,1770940148750,-500.0,0.00030641,2]
[405281425,1770940148770,-302.96945244,0.00030758,2]
[405281426,1770940148792,-535.93,0.00030997,2]
[405281427,1770940148811,-535.93,0.00030997,2]
[405281428,1770940148830,-354.34087152,0.00030997,2]
[405281443,1770940233180,-83.99726799,0.00030996,2]
[405281444,1770940233192,-316.00273201,0.00030996,2]
[405281445,1770940233202,-181.58912848,0.00030997,2]
[405281446,1770940233212,-481.60813951,0.00030997,2]
[405281447,1770940233224,-54.32186049,0.00030997,2]
[405281448,1770940233233,-535.93,0.00030997,2]
[405281449,1770940233242,-535.93,0.00030997,2]
[405281450,1770940233252,-530.91813951,0.00030997,2]
[405281451,1770940233267,-5.01186049,0.00030997,2]
[405281452,1770940233276,-500.0,0.0003171,30]
[405281453,1770940233286,-176.73813451,0.0003171,30]
[405281492,1770940238926,-323.26186549,0.0003171,30]
[405281494,1770940238935,-500.0,0.0003171,30]
[405281496,1770940238945,-500.0,0.00031765,30]
[405281498,1770940238955,-226.19557518,0.00031765,30]
[405281722,1770940241090,-59.37517461,0.00031765,30]
[405281725,1770940241108,-319.01696297,0.00031765,30]
[405281727,1770940241117,-103.72099291,0.00031765,30]
[405281729,1770940241128,-396.27900709,0.00031765,30]
[405281731,1770940241138,-196.06949572,0.000318,2]
[405282272,1770940246582,-13.64595237,0.000318,2]
[405282300,1770940246855,-515.4948434,0.000318,2]
[405282303,1770940246875,-326.89204412,0.000318,2]
[405282646,1770940250256,-22.98258824,0.000318,2]
[405282695,1770940250958,-78.96761554,0.000318,2]
[405283507,1770941238121,-150.0,0.00025306,2]
[405283508,1770941238148,-811.4762671,0.00025407,3]
[405283509,1770941238170,-743.33171509,0.00025564,3]
[405283510,1770941351107,-814.88663299,0.00025564,3]
[405283511,1770941351131,-2304.96042905,0.00025938,3]
[405283512,1770941351154,-3051.70251003,0.00026311,3]
[405283513,1770941351176,-300.0,0.00026682,2]
[405283514,1770941351197,-289.63590344,0.00026683,2]
[405283515,1770941351218,-339.80696561,0.00026683,2]
[405283516,1770941351242,-611.10362635,0.00026683,2]
[405283517,1770941351264,-500.0,0.00026683,2]
[405283518,1770941351285,-500.0,0.00026683,2]
[405283519,1770941351307,-465.33046829,0.00026683,2]
[405283520,1770941351329,-500.0,0.00026683,2]
[405283521,1770941351351,-500.0,0.00026683,2]
[405283522,1770941351373,-500.0,0.00026683,2]
[405283523,1770941351396,-500.0,0.00026683,2]
[405283524,1770941351417,-500.0,0.00026683,2]
[405283525,1770941351439,-500.0,0.00026683,2]
[405283526,1770941351460,-500.0,0.00026683,2]
[405283527,1770941351484,-500.0,0.00026683,2]
[405283528,1770941351508,-500.0,0.00026683,2]
[405283529,1770941351530,-500.0,0.00026683,2]
[405283530,1770941351552,-500.0,0.00026683,2]
[405283531,1770941351576,-500.0,0.00026683,2]
[405283532,1770941351600,-500.0,0.00026683,2]
[405283533,1770941351624,-500.0,0.00026683,2]
[405283534,1770941351651,-500.0,0.00026683,2]
[405283535,1770941351675,-500.0,0.00026683,2]
[405283536,1770941351699,-500.0,0.00026683,2]
[405283537,1770941351725,-500.0,0.00026683,2]
[405283538,1770941351750,-500.0,0.00026683,2]
[405283539,1770941351773,-500.0,0.00026683,2]
[405283540,1770941351797,-500.0,0.00026683,2]
[405283541,1770941351820,-500.0,0.00026683,2]
[405283542,1770941351842,-178.61711178,0.00026683,2]
[405283543,1770941351864,-500.0,0.00026683,2]
[405283544,1770941351885,-500.0,0.00026683,2]
[405283545,1770941351907,-500.0,0.00026683,2]
[405283546,1770941351932,-500.0,0.00026683,2]
[405283547,1770941351953,-500.0,0.00026683,2]
[405283548,1770941351979,-500.0,0.00026683,2]
[405283549,1770941352010,-500.0,0.00026683,2]
[405283550,1770941352039,-500.0,0.00026683,2]
[405283551,1770941352073,-500.0,0.00026683,2]
[405283552,1770941352099,-500.0,0.00026683,2]
[405283553,1770941352124,-169.19141297,0.00026683,2]
[405283554,1770941355098,-280.21793673,0.00026683,2]
[405283555,1770941360109,-50.5906503,0.00026683,2]
[405283556,1770941360130,-500.0,0.00026683,2]
[405283557,1770941360151,-344.58588104,0.00026683,2]
[405283558,1770941363091,-155.41411896,0.00026683,2]
[405283559,1770941363114,-500.0,0.00026683,2]
[405283560,1770941363137,-300.0,0.00026683,2]
[405283561,1770941363160,-500.0,0.00026683,2]
[405283562,1770941363181,-500.0,0.00026683,2]
[405283563,1770941363203,-500.0,0.00026683,2]
[405283564,1770941363224,-500.0,0.00026683,2]
[405283565,1770941363246,-500.0,0.00026683,2]
[405283566,1770941363269,-500.0,0.00026683,2]
[405283567,1770941363293,-500.0,0.00026683,2]
[405283568,1770941363315,-500.0,0.00026683,2]
[405283569,1770941363337,-500.0,0.00026683,2]
[405283570,1770941363360,-300.0,0.00026683,2]
[405283571,1770941363385,-3798.44459101,0.00026685,3]
[405283572,1770941363406,-742.60909304,0.00026685,3]
[405283573,1770941363429,-4545.18667198,0.00027058,3]
[405283574,1770941363451,-300.0,0.00027218,30]
[405283575,1770941363473,-300.0,0.00027218,30]
[405283576,1770941363495,-300.0,0.00027218,30]
[405283577,1770941363665,-300.0,0.00027218,30]
[405283578,1770941363690,-300.0,0.00027218,30]
[405283579,1770941363714,-300.0,0.00027218,30]
[405283580,1770941363736,-300.0,0.00027218,30]
[405283581,1770941363758,-300.0,0.00027218,30]
[405283582,1770941363781,-300.0,0.00027218,30]
[405283583,1770941363803,-300.0,0.00027218,30]
[405283584,1770941363826,-300.0,0.00027218,30]
[405283585,1770941363848,-300.0,0.00027218,30]
[405283586,1770941363871,-300.0,0.00027218,30]
[405283587,1770941363894,-300.0,0.00027218,30]
[405283588,1770941363916,-300.0,0.00027218,30]
[405283589,1770941363937,-177.0,0.00027306,2]
[405283590,1770941363960,-5201.7204176,0.00027432,3]
[405283591,1770941363981,-5587.62915714,0.00027805,3]
[405283592,1770941364008,-600.0,0.0002798,30]
[405283593,1770941364031,-5973.53789668,0.00028178,3]
[405283594,1770941364053,-6359.44663621,0.00028552,3]
[405283595,1770941364073,-420.0,0.00028856,2]
[405283596,1770941364096,-6745.35537575,0.00028925,3]
[405283597,1770941364118,-7131.26411529,0.00029299,3]
[405283598,1770941364140,-204.0,0.00029306,2]
[405283599,1770941364169,-7481.25024924,0.00029672,3]
[405283600,1770941364199,-7795.3137776,0.00030046,3]
[405283601,1770941364219,-1227.0,0.00030137,7]
[405283602,1770941364241,-545.07,0.00030142,10]
[405283603,1770941364260,-7149.36608853,0.00030152,2]
[405283604,1770941364281,-347.99,0.00030162,10]
[405283605,1770941364302,-454.22,0.00030162,10]
[405283606,1770941364322,-12365.5045997,0.00030172,2]
[405283607,1770941364342,-153.96,0.000302,7]
[405283608,1770941364362,-500.0,0.00030363,2]
[405283609,1770941364381,-339.497291,0.00030364,2]
[405283610,1770941364402,-4415.9292846,0.00030364,2]
[405283611,1770941364423,-170.3866805,0.00030364,2]
[405283612,1770941364445,-1071.93825645,0.00030419,3]
[405283708,1770941438334,-150.0,0.0002589,2]
[405283710,1770941438345,-177.0,0.0002789,2]
[405283712,1770941438356,-1289.7341513,0.00028899,2]
[405283714,1770941438367,-204.0,0.0002989,2]
[405283716,1770941438378,-400.0,0.00030418,2]
[405283718,1770941438388,-2945.34251546,0.00030419,3]
[405283865,1770941440180,-671.64,0.00030419,3]
[405283871,1770941440234,-861.0113232,0.00030419,3]
[405284528,1770941446778,-361.51,0.00030419,3]
[405284717,1770941448504,-477.35238135,0.00030419,3]
[405284868,1770942026050,500.0,0.00013699,2]
[405284869,1770942026079,201.74756008,0.00014247,2]
[405284870,1770942029874,500.0,0.00013273,2]
[405284871,1770942030621,1000.0,0.00013821,2]
[405284872,1770942033746,500.0,0.00013273,2]
[405284873,1770942033802,500.0,0.00013821,2]
[405284874,1770942038129,500.0,0.00013699,2]
[405284875,1770942038181,1001.05063236,0.00014247,2]
[405284876,1770942038544,504.75393189,0.00013273,2]
[405284877,1770942065066,500.0,0.00013273,2]
[405284878,1770942065096,864.38062883,0.00014916,2]
[405284879,1770942065129,1000.0,0.00013821,2]
[405284880,1770942065179,1500.0,0.00014368,2]
[405284881,1770942082256,502.3719701,0.00013273,2]
[405284882,1770942085008,500.0,0.00013699,2]
[405284883,1770942085056,500.90607663,0.00014247,2]
[405284884,1770942086867,262.53827945,0.00013273,2]
[405284885,1770942087602,530.4451806,0.00013273,2]
[405284886,1770942087921,160.03320393,0.00013273,2]
[405284887,1770942096435,500.0,0.00013699,2]
[405284888,1770942096488,1000.0,0.00014247,2]
[405284889,1770942096540,656.96239871,0.00014795,2]
[405284890,1770942125921,989.81531994,0.00014247,2]
[405284891,1770942125984,500.0,0.00013699,2]
[405284892,1770942126887,500.0,0.00013273,2]
[405284893,1770942126946,466.06518872,0.00014368,2]
[405284894,1770942127049,500.0,0.00013273,2]
[405284895,1770942127089,1046.00503798,0.00013821,2]
[405284896,1770942127693,1000.0,0.00013821,2]
[405284897,1770942128620,500.80241704,0.00013699,2]
[405284898,1770942129241,500.92563695,0.00013699,2]
[405284899,1770942131835,487.91608493,0.00013699,2]
[405284900,1770942134997,473.53260077,0.00013273,2]
[405284901,1770942303450,500.0,0.00013273,2]
[405284902,1770942303511,367.41051332,0.00013821,2]
[405284903,1770942305947,228.00107862,0.00013973,2]
[405284904,1770942306596,500.0,0.00013699,2]
[405284905,1770942306642,1007.77467851,0.00014247,2]
[405284906,1770942307640,302.95583762,0.00013699,2]
[405284907,1770942310761,300.0,0.00013673,2]
[405284908,1770942310821,600.0,0.00014221,2]
[405284909,1770942310880,185.41803946,0.00014768,2]
[405284910,1770942310971,500.0,0.00013273,2]
[405284911,1770942311002,1000.0,0.00013821,2]
[405284912,1770942311038,919.23591432,0.00014368,2]
[405284913,1770942317541,1000.0,0.00013821,2]
[405284914,1770942317603,500.0,0.00013273,2]
[405284915,1770942317647,1534.52967472,0.00014368,2]
[405284916,1770942318585,500.461115,0.00013273,2]
[405284917,1770942322311,500.0,0.00013273,2]
[405284918,1770942322575,1000.0,0.00013821,2]
[405284919,1770942325877,500.0,0.00013273,2]
[405284920,1770942325912,990.12048303,0.00013821,2]
[405284921,1770942346068,500.0,0.00013273,2]
[405284922,1770942346098,1000.0,0.00013821,2]
[405284923,1770942346131,1500.0,0.00014368,2]
[405284924,1770942346160,870.3440864,0.00014916,2]
[405284925,1770942368351,500.0,0.00013273,2]
[405284926,1770942368413,1003.85478624,0.00013821,2]
[405284927,1770942376052,500.0,0.00013273,2]
[405284928,1770942376103,1000.0,0.00013821,2]
[405284929,1770942376155,242.99975461,0.00014368,2]
[405284930,1770942383074,500.0,0.00013273,2]
[405284931,1770942383129,626.31053388,0.00013821,2]
[405284932,1770942386503,500.0,0.00013273,2]
[405284933,1770942386560,1000.0,0.00013821,2]
[405284934,1770942386611,1000.0,0.00014368,2]
[405284935,1770942392327,500.0,0.00013273,2]
[405284937,1770942430085,500.0,0.00013273,2]
[405284938,1770942430135,1000.0,0.00013821,2]
[405284939,1770942430186,500.0,0.00014368,2]
[405284940,1770942431090,-185.0,0.00025,7]
[405284941,1770942431112,-150.0,0.00025051,2]
[405284942,1770942431134,-440.09101168,0.0002664,2]
[405284943,1770942555167,-1138.28861439,0.00026,30]
[405284944,1770942574118,-456.8579029,0.00026,30]
[405284945,1770942574149,-2367.01434695,0.0002664,2]
[405284946,1770942574179,-964.21636114,0.0002664,2]
[405284947,1770942574208,-300.0,0.00026848,2]
[405284948,1770942574236,-177.0,0.00027051,2]
[405284949,1770942574263,-500.0,0.00027397,2]
[405284950,1770942574294,-150.0,0.00027397,5]
[405284951,1770942574323,-1743.51617436,0.000275,2]
[405284952,1770942574349,-206.33133488,0.00027945,5]
[405284953,1770942574378,-615.00177559,0.00028099,2]
[405284954,1770942574403,-500.0,0.00028099,2]
[405284955,1770942574428,-500.0,0.00028099,2]
[405284956,1770942574455,-500.0,0.00028099,2]
[405284957,1770942574479,-500.0,0.00028099,2]
[405284958,1770942574507,-277.86171117,0.00028099,2]
[405284959,1770942574533,-1619.13303567,0.000281,7]
[405284960,1770942574558,-290.618699,0.00028584,2]
[405284961,1770942574581,-420.0,0.0002903,2]
[405284962,1770942574606,-204.0,0.00029051,2]
[405284963,1770942574629,-165.43434908,0.00029107,2]
[405284964,1770942574650,-297.48404651,0.00029107,2]
[405284965,1770942574672,-254.6229682,0.00029169,2]
[405284966,1770942574696,-9643.2208903,0.00029169,2]
[405284967,1770942574720,-3311.9469634,0.00029169,2]
[405284968,1770942574745,-450.2235482,0.00029169,2]
[405284969,1770942574766,-202.74513241,0.00029242,2]
[405284970,1770942574787,-2628.46326258,0.00029956,2]
[405284971,1770942607319,500.0,0.00013273,2]
[405284972,1770942607349,1275.49893864,0.00014368,2]
[405284973,1770942607383,1000.0,0.00013821,2]
[405284974,1770942608253,500.0,0.00013699,2]
[405284975,1770942608302,957.96549605,0.00014247,2]
[405284976,1770942613725,500.0,0.00013273,2]
[405284977,1770942613763,500.0,0.00013821,2]
[405285011,1770942631820,-371.53673742,0.00029956,2]
[405285013,1770942631830,-13.43326258,0.0003,2]
[405285130,1770942638407,-3248.56673742,0.0003,2]
[405285131,1770942638417,-1216.17691087,0.0003,60]
[405285133,1770942638426,-279.55644202,0.00030364,2]
[405285135,1770942638436,-500.0,0.00030792,2]
[405285137,1770942638445,-206.07964913,0.00030927,2]
[405285139,1770942638454,-400.0,0.00031025,2]
[405285141,1770942638464,-300.0,0.00031026,30]
[405285143,1770942638474,-300.0,0.00031026,30]
[405285145,1770942638483,-300.0,0.00031026,30]
[405285147,1770942638493,-300.0,0.00031026,30]
[405285149,1770942638503,-300.0,0.00031026,30]
[405285151,1770942638513,-300.0,0.00031026,30]
[405285153,1770942638523,-300.0,0.00031026,30]
[405285155,1770942638533,-300.0,0.00031026,30]
[405285157,1770942638543,-300.0,0.00031026,30]
[405285175,1770942638702,-300.0,0.00031026,30]
[405285177,1770942638712,-300.0,0.00031026,30]
[405285179,1770942638723,-300.0,0.00031026,30]
[405285181,1770942638733,-300.0,0.00031026,30]
[405285183,1770942638743,-300.0,0.00031026,30]
[405285185,1770942638753,-300.0,0.00031026,30]
[405285187,1770942638763,-285.93667013,0.00031026,2]
[405285189,1770942638773,-231.0,0.00031051,2]
[405285191,1770942638782,-500.0,0.00031165,2]
[405285193,1770942638792,-150.0,0.00031526,2]
[405285195,1770942638801,-150.0,0.00031526,2]
[405285197,1770942638810,-500.0,0.00031526,2]
[405285199,1770942638820,-150.0,0.00031526,2]
[405285201,1770942638829,-150.0,0.00031526,2]
[405285203,1770942638839,-500.0,0.00031526,2]
[405285205,1770942638848,-500.0,0.00031526,2]
[405285207,1770942638857,-150.0,0.00031526,2]
[405285209,1770942638867,-150.0,0.00031526,2]
[405285211,1770942638877,-244.99818018,0.00031526,2]
[405285213,1770942638886,-150.0,0.00031526,2]
[405285214,1770942638895,-500.0,0.00031526,2]
[405285217,1770942638905,-500.0,0.00031526,2]
[405285218,1770942638914,-150.0,0.00031526,2]
[405285220,1770942638924,-150.0,0.00031526,2]
[405285222,1770942638934,-150.0,0.00031526,2]
[405285224,1770942638943,-209.44609064,0.00031526,2]
[405285226,1770942638953,-151.79182971,0.00031526,2]
[405285228,1770942638963,-150.0,0.00031581,2]
[405285230,1770942638972,-500.0,0.00031581,2]
[405285232,1770942638982,-158.54641681,0.00031581,2]
[405285234,1770942638992,-150.0,0.00031581,2]
[405285236,1770942639003,-500.0,0.00031581,2]
[405285238,1770942639014,-500.0,0.00031581,2]
[405285240,1770942639024,-150.0,0.00031581,2]
[405285242,1770942639034,-163.57520051,0.00031581,2]
[405285244,1770942639046,-276.16465339,0.00031581,2]
[405285246,1770942639057,-500.000001,0.00031581,2]
[405285248,1770942639067,-500.0,0.00031581,2]
[405285250,1770942639076,-150.0,0.00031581,2]
[405285252,1770942639086,-150.0,0.00031581,2]
[405285254,1770942639096,-150.0,0.00031581,2]
[405285256,1770942639105,-161.97244072,0.00031636,2]
[405285258,1770942639115,-500.0,0.00031636,2]
[405285260,1770942639126,-500.0,0.00031636,2]
[405285262,1770942639136,-426.90584445,0.00031636,2]
[405285264,1770942639146,-150.0,0.00031636,2]
[405285266,1770942639155,-500.0,0.00031636,2]
[405285268,1770942639165,-150.0,0.00031636,2]
[405285270,1770942639175,-600.0,0.00031645,30]
[405285272,1770942639185,-500.0,0.00031664,2]
[405285274,1770942639194,-150.0,0.00031664,2]
[405285275,1770942639203,-500.0,0.00031664,2]
[405285277,1770942639213,-172.78895055,0.00031664,2]
[405285279,1770942639223,-500.0,0.0003169,2]
[405285281,1770942639233,-228.29240724,0.0003169,2]
[405285283,1770942639243,-150.0,0.0003169,2]
[405285285,1770942639253,-258.36884435,0.0003169,2]
[405285287,1770942639262,-184.54171238,0.0003169,2]
[405285289,1770942639272,-901.05913086,0.000317,2]
[405285291,1770942639281,-1001.0736353,0.00031718,2]
[405285293,1770942639291,-500.0,0.00031719,2]
[405285295,1770942639300,-500.0,0.00031719,2]
[405285297,1770942639309,-150.0,0.00031719,2]
[405285299,1770942639319,-531.42214305,0.00031745,2]
[405285301,1770942639329,-150.0,0.00031745,2]
[405285303,1770942639338,-500.0,0.00031774,2]
[405285305,1770942639348,-500.0,0.00031774,2]
[405285307,1770942639357,-200.0,0.00031774,2]
[405285309,1770942639367,-250.0,0.000318,2]
[405285311,1770942639377,-2008.94746061,0.000318,2]
[405285313,1770942639387,-500.0,0.00031828,2]
[405285314,1770942639397,-500.0,0.00031828,2]
[405285316,1770942639406,-500.0,0.00031883,2]
[405285318,1770942639415,-500.0,0.00031883,2]
[405285320,1770942639424,-500.0,0.00031938,2]
[405285322,1770942639433,-500.0,0.00031938,2]
[405285324,1770942639442,-500.0,0.00031938,2]
[405285326,1770942639455,-500.0,0.00031938,2]
[405285328,1770942639464,-500.0,0.00031938,2]
[405285330,1770942639473,-500.0,0.00031938,2]
[405285332,1770942639483,-500.0,0.00031938,2]
[405285334,1770942639493,-500.0,0.00031938,2]
[405285335,1770942639502,-253.35880931,0.00031938,2]
[405285337,1770942639512,-500.0,0.00031938,2]
[405285339,1770942639522,-500.0,0.00031938,2]
[405285341,1770942639532,-200.01,0.00031984,2]
[405285343,1770942639541,-500.0,0.00031993,2]
[405285345,1770942639550,-500.0,0.00031993,2]
[405285347,1770942639560,-500.0,0.00031993,2]
[405285349,1770942639569,-500.0,0.00031993,2]
[405285351,1770942639578,-500.0,0.00031993,2]
[405285353,1770942639587,-500.0,0.00031993,2]
[405285355,1770942639596,-574.82312491,0.00031993,2]
[405285357,1770942639606,-500.0,0.00031993,2]
[405285359,1770942639615,-500.0,0.00031993,2]
[405285361,1770942639623,-500.0,0.00031993,2]
[405285363,1770942639632,-500.0,0.00032048,2]
[405285365,1770942639640,-264.97708763,0.00032048,2]
[405285366,1770942639650,-500.0,0.00032048,2]
[405285368,1770942639659,-500.0,0.00032048,2]
[405285370,1770942639669,-500.0,0.00032048,2]
[405285372,1770942639678,-500.0,0.00032048,2]
[405285374,1770942639687,-500.0,0.00032048,2]
[405285376,1770942639696,-500.0,0.00032048,2]
[405285378,1770942639705,-500.0,0.00032048,2]
[405285380,1770942639714,-500.0,0.00032102,2]
[405285382,1770942639723,-500.0,0.00032102,2]
[405285384,1770942639732,-500.0,0.00032102,2]
[405285386,1770942639741,-500.0,0.00032102,2]
[405285388,1770942639749,-304.91740846,0.00032102,2]
[405285389,1770942639758,-615.77334751,0.00032102,2]
[405285391,1770942639767,-500.0,0.00032102,2]
[405285393,1770942639776,-500.0,0.00032102,2]
[405285395,1770942639785,-338.0,0.00032157,2]
[405285397,1770942639794,-500.0,0.00032157,2]
[405285399,1770942639803,-500.0,0.00032157,2]
[405285401,1770942639812,-500.0,0.00032157,2]
[405285403,1770942639821,-500.0,0.00032157,2]
[405285405,1770942639830,-500.0,0.00032157,2]
[405285407,1770942639839,-500.0,0.00032211,2]
[405285409,1770942639848,-376.95428043,0.00032212,2]
[405285411,1770942639858,-500.0,0.00032212,2]
[405285413,1770942639867,-500.0,0.00032212,2]
[405285415,1770942639877,-500.0,0.00032212,2]
[405285417,1770942639886,-500.0,0.00032212,2]
[405285419,1770942639897,-621.94870549,0.00032267,2]
[405285421,1770942639907,-500.0,0.00032267,2]
[405285423,1770942639917,-530.4603205,0.00032267,2]
[405285425,1770942639927,-500.0,0.00032267,2]
[405285427,1770942639936,-500.0,0.00032285,2]
[405285429,1770942639946,-500.0,0.00032322,2]
[405285430,1770942639956,-500.0,0.00032322,2]
[405285432,1770942639966,-612.32015255,0.00032376,2]
[405285434,1770942639976,-500.0,0.00032376,2]
[405285436,1770942639986,-500.0,0.00032431,2]
[405285438,1770942639997,-500.0,0.00032485,2]
[405285440,1770942640007,-500.0,0.00032486,2]
[405285442,1770942640017,-160.04,0.000325,7]
[405285444,1770942640027,-196.88,0.000325,7]
[405285446,1770942640036,-500.0,0.00032541,2]
[405285448,1770942640048,-500.0,0.00032596,2]
[405285450,1770942640058,-279.0,0.00032637,2]
[405285452,1770942640067,-318.5674878,0.0003265,2]
[405285454,1770942640076,-500.0,0.00032659,2]
[405285456,1770942640087,-742.60909304,0.00032684,2]
[405285458,1770942640096,-793.0,0.00032694,30]
[405285460,1770942640105,-4075.82,0.000327,2]
[405285462,1770942640116,-7577.75008942,0.00032832,2]
[405285464,1770942640126,-500.0,0.00032842,2]
[405285466,1770942640135,-9643.2208903,0.00032843,2]
[405285468,1770942640145,-3537.5822472,0.00032849,6]
[405285470,1770942640155,-460.24,0.00032857,10]
[405285472,1770942640165,-383.53,0.00032857,10]
[405285474,1770942640174,-7577.75008942,0.00032867,2]
[405285476,1770942640184,-353.39,0.00032867,3]
[405285478,1770942640193,-176.69,0.00032867,3]
[405285480,1770942640203,-530.12,0.00032867,3]
[405285482,1770942640212,-500.0,0.00032876,2]
[405285484,1770942640221,-500.0,0.00032876,2]
[405285486,1770942640230,-2963.99,0.00032876,120]
[405285488,1770942640239,-2000.0,0.00032877,2]
[405285490,1770942640249,-2000.0,0.00032877,2]